{"text_format":"3","workbook":"xlsx","n_sheets":4,"sheets":["Início","Despesas","Receita","Resumo"],"not_rendered":{"charts":1,"defined_names":2},"read":"whole","date_system":"1900"}

{"sheet":"Início","index":0,"n_rows":8,"n_cols":2,"rows_kept":8}
[null,"SOBRE ESTE MODELO"]
[null,"Use esta pasta de trabalho de orçamento de evento para acompanhar as despesas incorridas e receita agregada por meio de um evento."]
[null,"Preencha o nome do evento e insira as informações em tabelas na planilha de despesas e receita."]
[null,"O total de receitas e despesas é calculado automaticamente."]
[null,"O resumo e gráfico de Lucro e perda são automaticamente atualizados na planilha de resumo."]
[null,"Observação: "]
[null,"há instruções adicionais na coluna A de cada planilha. Este texto está oculto de propósito. Para removê-lo, selecione a coluna A e selecione Excluir. Para reexibir o texto, selecione a coluna A e altere a cor da fonte."]
[null,"Saiba mais sobre as tabelas pressionando Shift e F10 dentro de uma tabela, selecione a opção TABELA e depois TEXTO ALTERNATIVO."]

{"sheet":"Despesas","index":1,"n_rows":33,"n_cols":8,"rows_kept":33,"merged":[[0,5,0,7],[1,1,1,7],[2,6,2,7]]}
["Insira os custos Real e Valor estimado para cada categoria nas respectivas tabelas desta planilha. As despesas totais são calculadas automaticamente. Instruções úteis sobre como usar esta planilha estão nas células desta coluna. Pressione seta para baixo para começar."]
["Insira o nome do evento na célula à direita para personalizar o título desta e outras planilhas.","Orçamento de evento para \nNome do evento"]
["O rótulo de despesas está na célula G3.",{"$nulls":5}," Despesas"]
["O rótulo valor estimado está na célula G4 e rótulo real na célula H4.",{"$nulls":5},"Valor estimado","Real"]
["O rótulo despesas totais está na célula à direita. O despesas totais previstas é automaticamente calculado na célula G5. O despesas totais real e a barra de dados mostrando o despesas totais real são automaticamente atualizados na célula H5. A próxima instrução está na célula A7.","Despesas totais",{"$nulls":4},{"$f":"SUM(C12,C20,C26,C33,G12,G20,G25)","v":{"v":1145,"d":"R$ 1,145.00"}},{"$f":"SUM(D12,D20,D26,D33,H12,H20,H25)","v":{"v":395,"d":"R$ 395.00"}}]
[]
["Insira as despesas do site na tabela iniciando na célula à direita e as despesas de bebidas na tabela iniciando na célula F7. A próxima instrução está na célula A14.","Site","Valor estimado","Real",null,"Bebidas","Valor estimado","Real"]
[null,"Taxas da sala e espaço",{"v":500,"d":"R$ 500.00"},{"v":250,"d":"R$ 250.00"},null,"Alimentação"]
[null,"Equipe de site",{"v":400,"d":"R$ 400.00"},{"v":50,"d":"R$ 50.00"},null,"Bebidas"]
[null,"Equipamentos",{"$nulls":3},"Roupa de mesa"]
[null,"Mesas e cadeiras",{"$nulls":3},"Funcionários e gorjetas"]
[null,"Total",{"$f":"SUBTOTAL(109,DespesasSite[Valor estimado])","v":{"v":900,"d":"R$ 900.00"}},{"$f":"SUBTOTAL(109,DespesasSite[Real])","v":{"v":300,"d":"R$ 300.00"}},null,"Total",{"$f":"SUBTOTAL(109,DespesasBebidas[Valor estimado])","v":{"v":0,"d":"R$ 0.00"}},{"$f":"SUBTOTAL(109,DespesasBebidas[Real])","v":{"v":0,"d":"R$ 0.00"}}]
[]
["Insira despesas de decoração na tabela iniciando na célula à direita e despesas de programa na tabela iniciando na célula F14. A próxima instrução está na célula A22.","Decorações","Valor estimado","Real",null,"Programa","Valor estimado","Real"]
[null,"Flores",{"v":200,"d":"R$ 200.00"},{"v":50,"d":"R$ 50.00"},null,"Executores"]
[null,"Velas",{"$nulls":3},"Alto-Falantes"]
[null,"Iluminação",{"$nulls":3},"Viagem"]
[null,"Balões",{"$nulls":3},"Hotel"]
[null,"Fornecedores de papel",{"$nulls":3},"Outros"]
[null,"Total",{"$f":"SUBTOTAL(109,DespesasDecorações[Valor estimado])","v":{"v":200,"d":"R$ 200.00"}},{"$f":"SUBTOTAL(109,DespesasDecorações[Real])","v":{"v":50,"d":"R$ 50.00"}},null,"Total",{"$f":"SUBTOTAL(109,DespesasPrograma[Valor estimado])","v":{"v":0,"d":"R$ 0.00"}},{"$f":"SUBTOTAL(109,DespesasPrograma[Real])","v":{"v":0,"d":"R$ 0.00"}}]
[]
["Insira as despesas de publicidade na tabela iniciando na célula à direita e despesas de prêmios na tabela iniciando na célula F22. A próxima instrução está na célula A28.","Publicidade","Valor estimado","Real",null,"Prêmios","Valor estimado","Real"]
[null,"Trabalho com elementos gráficos",{"v":45,"d":"R$ 45.00"},{"v":45,"d":"R$ 45.00"},null,"Faixa de opções/as placas/troféus"]
[null,"Impressão/fotocópia",{"$nulls":3},"Presentes"]
[null,"Postagem",{"$nulls":3},"Total",{"$f":"SUBTOTAL(109,DespesasPrêmios[Valor estimado])","v":{"v":0,"d":"R$ 0.00"}},{"$f":"SUBTOTAL(109,DespesasPrêmios[Real])","v":{"v":0,"d":"R$ 0.00"}}]
[null,"Total",{"$f":"SUBTOTAL(109,DespesasPublicidade[Valor estimado])","v":{"v":45,"d":"R$ 45.00"}},{"$f":"SUBTOTAL(109,DespesasPublicidade[Real])","v":{"v":45,"d":"R$ 45.00"}}]
[]
["Insira as despesas diversas na tabela iniciando na célula à direita.","Diversos","Valor estimado","Real"]
[null,"Telefone"]
[null,"Transporte"]
[null,"Fornecedores de material de escritório"]
[null,"Serviços de fax"]
[null,"Total",{"$f":"SUBTOTAL(109,DepesasDiversas[Valor estimado])","v":{"v":0,"d":"R$ 0.00"}},{"$f":"SUBTOTAL(109,DepesasDiversas[Real])","v":{"v":0,"d":"R$ 0.00"}}]

{"sheet":"Receita","index":2,"n_rows":30,"n_cols":7,"rows_kept":30,"merged":[[1,1,1,6],[2,5,2,6]]}
["Insira as receita Reais e Estimados para cada categoria nas respectivas tabelas desta planilha. O total de receitas é calculado automaticamente. Instruções úteis sobre como usar esta planilha estão nas células desta coluna. Pressione seta para baixo para começar."]
["O Nome da empresa é atualizado automaticamente na célula à direita.",{"$f":"Despesas!B2","v":"Orçamento de evento para \nNome do evento"}]
["O rótulo receita rótulo está na célula F3.",{"$nulls":4}," Receita"]
["O rótulo estimado está na célula F4 e rótulo real na célula G4.",{"$nulls":4},"Valor estimado","Real"]
["O rótulo receita total está na célula à direita. Total de receitas estimado é calculado automaticamente na célula F5. Total de receitas e a barra de dados mostrando o Total de receitas real são automaticamente atualizados na célula G5.","Receita totais",{"$nulls":3},{"$f":"SUM(Admissão[[#Totals],[Total estimado]],AnúnciosNoPrograma[[#Totals],[Total estimado]],ApresentadoresOuFornecedores[[#Totals],[Total estimado]],VendasDeItens[[#Totals],[Total estimado]])","v":{"v":1936,"d":"R$ 1,936.00"}},{"$f":"SUM(Admissão[[#Totals],[Total real]],AnúnciosNoPrograma[[#Totals],[Total real]],ApresentadoresOuFornecedores[[#Totals],[Total real]],VendasDeItens[[#Totals],[Total real]])","v":{"v":1831,"d":"R$ 1,831.00"}}]
["O rótulo admissão está na célula à direita.","Admissão"]
["Insira o número estimado e real de admissões com taxas de pedido na tabela iniciando na célula à direita. Receita estimada e real de admissão é calculada automaticamente. A próxima instrução está na célula A12.","Valor estimado","Real","Tipo","Preço","Total estimado","Total real"]
[null,300,278,"Adultos @",{"v":5,"d":"R$ 5.00"},{"$f":"B8*E8","v":{"v":1500,"d":"R$ 1,500.00"}},{"$f":"C8*E8","v":{"v":1390,"d":"R$ 1,390.00"}}]
[null,197,195,"Crianças @",{"v":2,"d":"R$ 2.00"},{"$f":"B9*E9","v":{"v":394,"d":"R$ 394.00"}},{"$f":"C9*E9","v":{"v":390,"d":"R$ 390.00"}}]
[null,42,51,"Outros @",{"v":1,"d":"R$ 1.00"},{"v":42,"d":"R$ 42.00"},{"v":51,"d":"R$ 51.00"}]
[null," ",{"$nulls":3},{"$f":"SUBTOTAL(109,Admissão[Total estimado])","v":{"v":1936,"d":"R$ 1,936.00"}},{"$f":"SUBTOTAL(109,Admissão[Total real])","v":{"v":1831,"d":"R$ 1,831.00"}}]
["Anúncios na etiqueta programa está na célula à direita.","Anúncios no programa"]
["Insira o número real e estimado de anúncios no programa e taxas de anúncio na tabela iniciando na célula à direita. A receita estimada e real de anúncios é calculada automaticamente. A próxima instrução está na célula A18.","Valor estimado","Real","Tipo","Preço","Total estimado","Total real"]
[{"$nulls":3},"Folhas de rosto @",null,{"$f":"B14*E14","v":{"v":0,"d":"R$ 0.00"}},{"$f":"C14*E14","v":{"v":0,"d":"R$ 0.00"}}]
[{"$nulls":3},"Metade das páginas @",null,{"$f":"B15*E15","v":{"v":0,"d":"R$ 0.00"}},{"$f":"C15*E15","v":{"v":0,"d":"R$ 0.00"}}]
[{"$nulls":3},"Um quarto das páginas @",null,{"v":0,"d":"R$ 0.00"},{"v":0,"d":"R$ 0.00"}]
[null," ",{"$nulls":3},{"$f":"SUBTOTAL(109,AnúnciosNoPrograma[Total estimado])","v":{"v":0,"d":"R$ 0.00"}},{"$f":"SUBTOTAL(109,AnúnciosNoPrograma[Total real])","v":{"v":0,"d":"R$ 0.00"}}]
["Etiqueta de apresentadores ou fornecedores está na célula à direita.","Apresentadores/fornecedores"]
["Insira o número real e estimado dos apresentadores e fornecedores de taxas booth na tabela iniciando na célula à direita. Receita estimada e receita real são calculadas automaticamente. A próxima instrução está na célula A24.","Valor estimado","Real","Tipo","Preço","Total estimado","Total real"]
[{"$nulls":3},"Grande estande @",null,{"$f":"B20*E20","v":{"v":0,"d":"R$ 0.00"}},{"$f":"C20*E20","v":{"v":0,"d":"R$ 0.00"}}]
[{"$nulls":3},"Estande MED. @",null,{"$f":"B21*E21","v":{"v":0,"d":"R$ 0.00"}},{"$f":"C21*E21","v":{"v":0,"d":"R$ 0.00"}}]
[{"$nulls":3},"Pequeno estande @",null,{"v":0,"d":"R$ 0.00"},{"v":0,"d":"R$ 0.00"}]
[null," ",{"$nulls":3},{"$f":"SUBTOTAL(109,ApresentadoresOuFornecedores[Total estimado])","v":{"v":0,"d":"R$ 0.00"}},{"$f":"SUBTOTAL(109,ApresentadoresOuFornecedores[Total real])","v":{"v":0,"d":"R$ 0.00"}}]
["Venda de rótulo de itens está na célula à direita.","Vendas de itens"]
["Insira o número real e estimado de itens vendidos e taxas de item na tabela iniciando na célula à direita. Receita estimada e receita real são calculadas automaticamente.","Valor estimado","Real","Tipo","Preço","Total estimado","Total real"]
[{"$nulls":3},"Itens @",null,{"$f":"B26*E26","v":{"v":0,"d":"R$ 0.00"}},{"$f":"C26*E26","v":{"v":0,"d":"R$ 0.00"}}]
[{"$nulls":3},"Itens @",null,{"$f":"B27*E27","v":{"v":0,"d":"R$ 0.00"}},{"$f":"C27*E27","v":{"v":0,"d":"R$ 0.00"}}]
[{"$nulls":3},"Itens @",null,{"v":0,"d":"R$ 0.00"},{"v":0,"d":"R$ 0.00"}]
[{"$nulls":3},"Itens @",null,{"v":0,"d":"R$ 0.00"},{"v":0,"d":"R$ 0.00"}]
[null," ",{"$nulls":3},{"$f":"SUBTOTAL(109,VendasDeItens[Total estimado])","v":{"v":0,"d":"R$ 0.00"}},{"$f":"SUBTOTAL(109,VendasDeItens[Total real])","v":{"v":0,"d":"R$ 0.00"}}]

{"sheet":"Resumo","index":3,"n_rows":9,"n_cols":4,"rows_kept":9,"merged":[[1,1,1,3],[2,2,2,3],[8,1,8,4],[9,1,9,3]]}
["Resumo e gráfico de Lucro e Perda mostrando o Receita totais e despesas são automaticamente atualizados nessa planilha. Instruções úteis sobre como usar esta planilha estão nas células desta coluna. Pressione seta para baixo para começar."]
["O Nome do evento é atualizado automaticamente na célula à direita.",{"$f":"Despesas!B2","v":"Orçamento de evento para \nNome do evento"}]
["O rótulo de resumo de lucros e perdas está na célula C3. A próxima instrução está na célula A5.",null,"Resumo de lucros e perdas"]
[]
["Total da tabela iniciando na célula à direita é atualizado automaticamente. A próxima instrução está na célula A9.","Total","Valor estimado","Real"]
[null,"Receita totais",{"$f":"Receita!F5","v":{"v":1936,"d":"R$ 1,936.00"}},{"$f":"Receita!G5","v":{"v":1831,"d":"R$ 1,831.00"}}]
[null,"Despesas totais",{"$f":"Despesas!G5","v":{"v":1145,"d":"R$ 1,145.00"}},{"$f":"Despesas!H5","v":{"v":395,"d":"R$ 395.00"}}]
[null,"O lucro total (ou perda)",{"$f":"C6-C7","v":{"v":791,"d":"R$ 791.00"}},{"$f":"D6-D7","v":{"v":1436,"d":"R$ 1,436.00"}}]
["O gráfico de colunas clusterizado mostrando comparação do total estimado e real de receita e despesas está na célula à direita.","O gráfico de colunas clusterizado mostrando comparação estimada e real do total de receita e despesas está nessa célula."]